Cogmind - Beta 15 @@@ ROGUE MODE // 2025.08.08 @ 00:30:25 Player: lvl5hm Result: Self-destructed Performance ------------- Evolutions (6) 3000 Regions Visited (16) 3200 Robots Destroyed (290) 1450 Value Destroyed (11850) 11850 Prototype IDs (29) 580 Alien Tech Used (0) 0 Bonus (5351) 5351 TOTAL SCORE: 25431 Bonus ------- High Alert Combat Kills 2657 Follower Combat Kills 1592 Network Hubs Disabled 400 Met Data Miner 300 Built Enhanced Grunts 300 A7 Reached Mainframe 300 Met R17 at Cetus 500 Friendly Fire -698 Cogmind --------- Core Integrity 670/1150 Matter 300/300 Energy 128/220 System Corruption 11% Temperature Cool (9) Movement Immobile (Siege) Location -4/Factory Parts ------- > --- POWER (2) -------- Micro Fission Core Light Antimatter Reactor > --- PROPULSION (6) --- Armored Medium Treads Centrium Heavy Treads Centrium Heavy Treads > --- UTILITY (7) ------ Experimental Cooling System Huge Storage Unit Advanced Weapon Cycler Advanced Hacking Suite High-powered Tractor Beam > --- WEAPON (4) ------- Cooled Plasma Cannon Railgun > --- INVENTORY (25) --- Light Antimatter Reactor Multireflex Exoskeleton Multireflex Exoskeleton Experimental Power Amplifier Experimental Cryofiber Web Advanced Heat Sink Advanced Cooling System Advanced Sensor Array Improved Shield Generator Advanced Variable Charge Gun Heavy Gauss Cannon Mini Smartbomb Launcher Segregator Peak State ------------ > --- POWER ------------ Micro Fission Core Particle Reactor > --- PROPULSION ------- Improved Treads Armored Medium Treads Centrium Heavy Treads Centrium Heavy Treads > --- UTILITY ---------- Experimental Cooling System Huge Storage Unit Multitargeting Array Advanced Weapon Cycler Centrium Medium Armor Plating Centrium Medium Armor Plating Advanced Hacking Suite > --- WEAPON ----------- KE Penetrator Railgun Advanced KE Penetrator Heavy Gauss Cannon > --- INVENTORY -------- Light Antimatter Reactor Light Antimatter Reactor Centrium Heavy Treads Centrium Heavy Treads Multireflex Exoskeleton Multireflex Exoskeleton Experimental Power Amplifier Experimental Cryofiber Web Advanced Heat Sink Advanced Cooling System Compact Matter Pod Advanced Sensor Array Centrium Medium Armor Plating Improved Shield Generator High-powered Tractor Beam Advanced Variable Charge Gun Cooled Plasma Cannon Cooled Plasma Cannon Railgun Mini Smartbomb Launcher Segregator [Rating: 151] Favorites ----------- Power Cold Fusion Reactor Engine Improved Deuterium Engine Power Core Neutrino Core Reactor Cold Fusion Reactor Propulsion Armored Huge Wheel Treads Centrium Heavy Treads Leg Thunder Leg Wheel Armored Huge Wheel Utility Advanced Heat Sink Device Advanced Heat Sink Storage Huge Storage Unit Processor Advanced Signal Interpreter Hackware Hacking Suite Protection Centrium Medium Armor Plating Weapon KE Penetrator Energy Gun Medium Laser Energy Cannon Advanced Plasma Cannon Ballistic Gun KE Penetrator Ballistic Cannon Magnetic Acceleration Cannon Launcher Long-range Missile Launcher Build | -11 -10 -9 -9 -8 -7 -6 -6 -6 -6 -5 -5 -5 -5 -5 -5 -4 ------- Run | Yrd Mat Mat Sto Mat Fac Fac Low Low Dat Pro Fac Ext Cet Arc Hub Fac Slots Evolved 12 | . . 2 . 2 2 2 . . . . 2 . . . . 2 Power 1 | . . . . . . . . . . . 1 . . . . . Propulsion 4 | . . . . 1 1 . . . . . . . . . . 2 Utility 5 | . . 1 . 1 . 2 . . . . 1 . . . . . Weapon 2 | . . 1 . . 1 . . . . . . . . . . . Parts Attached 181 | 8 3 9 16 12 14 25 1 1 . 1 19 37 8 4 3 20 Power 22 | 1 1 1 . 2 1 3 . . . . 2 5 1 2 . 3 Engine 7 | 1 1 1 . . 1 2 . . . . 1 . . . . . Core 8 | . . . . 2 . . . . . . 1 4 . . . 1 Reactor 7 | . . . . . . 1 . . . . . 1 1 2 . 2 Propulsion 39 | 4 . 3 4 3 1 . . 1 . . 7 10 2 . . 4 Treads 17 | 2 . 3 4 2 . . . . . . . . 2 . . 4 Leg 18 | 2 . . . . . . . . . . 6 10 . . . . Wheel 4 | . . . . 1 1 . . 1 . . 1 . . . . . Hover . | . . . . . . . . . . . . . . . . . Flight . | . . . . . . . . . . . . . . . . . Utility 65 | 1 2 3 4 5 5 14 . . . . 8 14 2 1 2 4 Device 41 | . 1 1 3 2 5 8 . . . . 6 10 1 1 2 1 Storage 5 | 1 1 1 . 1 . 1 . . . . . . . . . . Processor 2 | . . . . . . 1 . . . . . 1 . . . . Hackware 2 | . . . . . . . . . . . 1 . . . . 1 Protection 15 | . . 1 1 2 . 4 . . . . 1 3 1 . . 2 Artifact . | . . . . . . . . . . . . . . . . . Weapon 55 | 2 . 2 8 2 7 8 1 . . 1 2 8 3 1 1 9 Energy Gun 12 | 1 . 1 3 . 2 1 . . . . . 1 1 . . 2 Energy Cannon 4 | . . . . . . . . . . . . 1 . . 1 2 Ballistic Gun 29 | 1 . 1 5 2 5 3 . . . 1 1 4 2 1 . 3 Ballistic Cannon 6 | . . . . . . 3 . . . . 1 1 . . . 1 Launcher 4 | . . . . . . 1 1 . . . . 1 . . . 1 Special Weapon . | . . . . . . . . . . . . . . . . . Impact Weapon . | . . . . . . . . . . . . . . . . . Slashing Weapon . | . . . . . . . . . . . . . . . . . Piercing Weapon . | . . . . . . . . . . . . . . . . . Special Melee Weapon . | . . . . . . . . . . . . . . . . . Unidentified Prototypes 16 | . . . 1 . 5 3 . . . . 1 . 4 . 1 1 Corrupted Parts 9 | . . . . . 6 1 . . . . . . 2 . . . System Corruption 43 | . . . . . 20 7 . . . . . . 16 . . . Parts Lost 45 | . . 5 11 1 1 1 . 2 . . 1 9 . . 1 13 Power 5 | . . 2 . . . . . . . . . 1 . . 1 1 Propulsion 11 | . . 2 3 . . . . 1 . . . 2 . . . 3 Utility 13 | . . . 2 1 . 1 . . . . 1 3 . . . 5 Weapon 16 | . . 1 6 . 1 . . 1 . . . 3 . . . 4 Highest Loss Streak 12 | . . 2 9 1 1 1 . 1 . . 1 4 . . 1 12 To Critical Strikes . | . . . . . . . . . . . . . . . . . Average Backups 18 | 2 4 4 6 7 12 19 23 21 23 20 23 21 21 20 20 20 Power 1 | . . . . . 2 2 3 3 3 3 1 1 1 1 1 . Propulsion 3 | 1 1 . . . 3 3 3 1 1 1 1 6 8 6 5 3 Utility 8 | . . 3 4 1 2 7 10 11 11 11 13 11 10 10 11 9 Weapon 4 | . 1 1 1 4 3 5 6 5 8 5 6 2 2 3 3 6 Tool/Special . | . . . . . . . . . . . . . . . . . Unused Backups 43 | . 2 . 1 3 5 1 . . . . 10 5 5 . 4 7 Power 2 | . 1 . . . . . . . . . 1 . . . . . Propulsion 16 | . 1 . . . . . . . . . 7 1 3 . 2 2 Utility 11 | . . . . 2 2 . . . . . 1 3 1 . . 2 Weapon 14 | . . . 1 1 3 1 . . . . 1 1 1 . 2 3 Tool/Special . | . . . . . . . . . . . . . . . . . Average Slot Usage (%) 87 | . 92 88 77 93 76 85 86 81 61 85 87 99 94 77 87 85 Engine 1 | . 14 7 . . 5 2 . . . . . . . . . . Core 1 | . . . . 8 1 . . . . . 3 6 . . . . Reactor 4 | . . . . . . 3 6 6 6 6 4 3 10 11 10 9 Treads 6 | . 19 21 21 26 . . . . . . . . 4 11 11 17 Leg 4 | . 8 . . . . . . . . . 2 22 12 . . . Wheel 5 | . . . . . 14 13 13 13 13 13 9 . . . . . Device 19 | . 7 17 9 13 8 22 20 20 20 20 23 22 23 23 23 22 Storage 6 | . 14 11 11 12 7 6 6 6 6 6 5 5 5 5 5 5 Processor 3 | . . . . . . 4 6 6 6 6 5 6 5 5 4 . Protection 4 | . . 1 4 6 6 4 6 6 6 6 1 3 5 5 5 5 Energy Gun 1 | . 14 15 8 . . 1 . . . . . 1 1 1 . . Ballistic Gun 16 | . 14 13 21 27 29 17 6 6 . 12 11 12 21 10 22 19 Ballistic Cannon 4 | . . . . . . 6 18 13 1 12 10 5 . . . . Peak Build Rating 151 | 6 9 11 14 38 69 87 82 85 76 79 111 112 140 142 141 151 Average Rating 86 | 4 7 9 10 24 51 77 81 77 61 78 96 105 126 128 138 145 On Entrance 67 | . 6 9 10 14 38 68 80 81 76 61 79 109 108 140 140 133 Naked Turns . | . . . . . . . . . . . . . . . . . Heaviest Build 162 | 13 16 19 18 55 67 133 133 133 125 129 149 152 153 161 162 157 Greatest Support 210 | 20 40 40 40 60 56 56 56 56 56 56 92 92 160 160 160 210 Greatest Overweight (x) 50 | . . . . 1 1 2 2 2 2 2 5 1 50 1 1 1 Average Overweight (x) 1 | . . . . . . 1 2 2 1 2 1 1 . . . . Largest Inventory Capacity 30 | 8 30 8 8 15 15 25 25 25 25 25 25 25 25 25 25 25 Average Capacity 21 | 7 8 8 8 9 15 23 25 25 25 25 25 25 25 25 25 25 Most Carried 25 | 3 8 6 8 15 15 25 25 25 25 24 25 25 25 25 25 25 Average Carried 20 | 2 4 4 6 7 14 21 25 22 24 21 24 24 24 24 24 24 Final Capacity 25 | 8 8 8 8 15 15 25 25 25 25 25 25 25 25 25 25 25 Final Carried 25 | 3 6 6 8 15 15 25 25 22 25 21 24 25 25 24 25 15 Class Distribution -------------------- 37% | Scavenger-Tank 23% | Scavenger-Gunner 14% | Skirmisher 6% | Tank 5% | Scavenger-Skirmisher 5% | Mutant 4% | Gunner 3% | Scavenger-Mutant Dominant Class ---------------- Mutant | -10/Materials Mutant | -9/Materials Scavenger-Gunner | -9/Storage Scavenger-Tank | -8/Materials Tank | -7/Factory Scavenger-Gunner | -6/Factory Skirmisher | -6/Lower Caves Skirmisher | -6/Lower Caves Mutant | -6/Data Miner Skirmisher | -5/Proximity Caves Scavenger-Gunner | -5/Factory Scavenger-Gunner | -5/Extension Scavenger-Tank | -5/Cetus Scavenger-Tank | -5/Archives Scavenger-Tank | -5/Hub_04(d) Scavenger-Tank | -4/Factory Resources | -11 -10 -9 -9 -8 -7 -6 -6 -6 -6 -5 -5 -5 -5 -5 -5 -4 ----------- Run | Yrd Mat Mat Sto Mat Fac Fac Low Low Dat Pro Fac Ext Cet Arc Hub Fac Matter Collected 11198 | 304 98 191 574 373 894 2031 114 131 . 40 1014 2810 344 203 934 1143 Remotely 2551 | . . . 88 . . 358 . . . . 477 961 . . 378 289 Salvage Created 13953 | 90 129 550 1110 723 1080 2081 30 91 . . 946 3708 262 172 938 2043 Parts 597 | . 8 24 60 33 59 97 6 3 . . 36 117 10 5 43 96 Haulers Intercepted 18 | . 1 . 2 2 7 . . . . . 1 2 . . 2 1 Recyclers Shooed 9 | . . 1 2 . 2 . . . . . . 2 . . 1 1 Parts Field Recycled . | . . . . . . . . . . . . . . . . . Retrieved Matter . | . . . . . . . . . . . . . . . . . Parts Self-Destructed 7 | . . . . . . . 4 3 . . . . . . . . Prevented . | . . . . . . . . . . . . . . . . . Kills | -11 -10 -9 -9 -8 -7 -6 -6 -6 -6 -5 -5 -5 -5 -5 -5 -4 ------- Run | Yrd Mat Mat Sto Mat Fac Fac Low Low Dat Pro Fac Ext Cet Arc Hub Fac Combat Hostiles Destroyed 197 | . 2 8 18 8 5 39 4 3 . . 16 50 3 2 13 26 Guns 143 | . 2 8 18 8 5 32 1 1 . . 8 26 2 2 9 21 Cannons 33 | . . . . . . 6 . 2 . . 8 15 1 . . 1 AOE 19 | . . . . . . 1 3 . . . . 8 . . 4 3 Classes Destroyed 22 | 1 2 3 3 2 2 1 . . . . . 6 . . . 2 Worker 20 | . . . . 1 5 1 . . . . . 4 . . 3 6 Builder 12 | . . . 2 . 1 1 . . . . . 5 . . . 3 Tunneler 5 | . . . . . 2 . . . . . . . . . 2 1 Hauler 18 | . 1 . 2 2 7 . . . . . 1 2 . . 2 1 Recycler 23 | 1 . 2 3 2 3 4 . . . . 1 6 . . . 1 Mechanic 2 | . . . . . . . . . . . . 2 . . . . Operator 1 | . . 1 . . . . . . . . . . . . . . Watcher 9 | . . . 1 . 1 3 . . . . . 2 . . 1 1 Swarmer 27 | . . . 3 . . 13 4 . . . . 5 . . . 2 Grunt 92 | . 2 5 7 7 1 15 . . . . 11 26 . . 9 9 Brawler 2 | . . . . . . . . . . . . 2 . . . . Duelist 4 | . . 1 1 . . . . . . . 1 . . . . 1 Protector 2 | . . . . . . . . . . . . 1 . . 1 . Sentry 32 | . . 2 7 . 2 5 . . . . 2 11 . 2 . 1 Demolisher 1 | . . . . . . . . . . . . 1 . . . . Specialist 1 | . . . . . . . . . . . . 1 . . . . Hunter 7 | . . . . 1 1 . . 2 . . . 1 . . . 2 Programmer 17 | . . . . . 1 5 . 1 . . 2 . . . . 8 Heavy 1 | . . . . . . 1 . . . . . . . . . . Behemoth 2 | . . . . . . . . . . . . 2 . . . . Cetus Guard 3 | . . . . . . . . . . . . . 3 . . . Lightning 3 | . . . . . . . . . . . . . . . 3 . Striker 2 | . . . . . . . . . . . . . . . . 2 Executioner 1 | . . . . . . . . . . . . . . . . 1 Savage 1 | . . . . . . . . . . . . . 1 . . . Butcher 1 | . . . . . . . . . . . . 1 . . . . Guerrilla 1 | . . . . . . . . . . . . 1 . . . . Best Kill Streak 23 | 1 2 4 5 5 6 6 4 2 . . 4 8 2 1 6 23 Combat Bots Only 8 | . 2 4 4 5 1 6 4 2 . . 4 8 2 1 4 7 Max Kills in Single Turn 3 | 1 1 1 2 2 2 3 2 1 . . 1 3 1 1 2 3 Gunslinging 1 | . . . 1 1 . 1 . . . . . . . . . 1 Exploded 3 | . . . . . . 1 2 . . . . 3 . . 2 3 Melee . | . . . . . . . . . . . . . . . . . Uniques/NPCs Destroyed . | . . . . . . . . . . . . . . . . . Combat | -11 -10 -9 -9 -8 -7 -6 -6 -6 -6 -5 -5 -5 -5 -5 -5 -4 -------- Run | Yrd Mat Mat Sto Mat Fac Fac Low Low Dat Pro Fac Ext Cet Arc Hub Fac Hostile Shots Fired 1368 | . 16 67 106 48 41 234 3 28 . . 48 238 2 8 70 459 Missed 402 | . 9 13 33 14 17 75 1 5 . . 17 77 . 1 18 122 Hits 966 | . 7 54 73 34 24 159 2 23 . . 31 161 2 7 52 337 Melee 21 | . . 7 5 . . . . . . . . . . . . 9 Projectile 945 | . 7 47 68 34 24 159 2 23 . . 31 161 2 7 52 328 AOE 8 | . . . . . 2 . . . . . 1 4 . . . 1 Critical Strikes 36 | . . . 4 1 . 2 . . . . 2 8 2 . 5 12 Part Disruptions 2 | . . . . . . . . . . . . . . . 1 1 Damage Taken 15602 | . 79 785 1131 538 440 2106 36 309 . . 549 2812 38 89 966 5724 Core 1502 | . 12 96 205 61 27 345 4 . . . 13 187 12 11 49 480 Absorbed by Shields 1700 | . . . . . . . . . . . 176 712 35 86 483 208 Reduced by Siege Mode 377 | . . . . . . . . . . . . . . . . 377 Redirected to Shielding 17 | . . 2 15 . . . . . . . . . . . . . Regen/Repaired (Parts) 86 | . . . . . . . . . . . 86 . . . . . Core Remaining (%) 76 | 100 95 . 24 88 96 . . . . 58 . . . . 72 . Volleys Fired 604 | 8 16 40 75 32 55 86 4 6 . . 39 126 10 7 45 55 Largest 4 | 2 2 3 3 3 4 4 3 4 . . 4 4 4 4 4 4 Hottest 212 | 60 60 110 119 69 112 186 118 172 . . 198 212 147 183 138 154 Shots Fired 1995 | 15 32 101 183 96 220 323 6 22 . . 144 432 41 23 155 202 Gun 1650 | 15 32 101 183 96 220 249 1 8 . . 81 280 36 23 150 175 Cannon 316 | . . . . . . 70 2 14 . . 63 137 5 . . 25 Launcher 29 | . . . . . . 4 3 . . . . 15 . . 5 2 Special . | . . . . . . . . . . . . . . . . . Kinetic 1748 | 8 16 42 127 96 220 310 3 20 . . 136 376 40 21 150 183 Thermal 218 | 7 16 59 56 . . 9 . 2 . . 8 41 1 2 . 17 Explosive 19 | . . . . . . . 3 . . . . 9 . . 5 2 Electromagnetic 10 | . . . . . . 4 . . . . . 6 . . . . Robot Hit Streak 49 | 5 5 14 16 19 25 32 10 15 . . 25 26 16 9 28 49 Robot Miss Streak 6 | 4 4 2 4 3 6 5 . 3 . . 5 6 1 2 4 4 Penetration Max 2 | . . . . . 1 1 . . . . 1 1 1 . 1 2 Secondary Targets 22 | . . 2 4 1 1 5 . . . . . . 1 . 4 4 Max Gunslinging Chain 1 | . . 1 1 1 1 1 . . . . . . 1 . 1 1 Shots Hit Robots 1340 | 9 18 71 126 69 133 208 1 15 . . 97 281 35 16 102 159 Core Hits 624 | 2 6 21 43 27 50 105 7 7 . . 39 163 14 5 50 85 Critical Kills 26 | . . . . 1 . 2 . . . . 2 7 2 . 2 10 Critical Parts Destroyed 40 | . . 1 . 1 5 2 . . . . . 18 2 . 6 5 Critical Strikes 101 | . . 2 2 2 8 5 . 2 . . 5 43 6 . 8 18 Burn 4 | . . 1 2 . . . . . . . . 1 . . . . Meltdown 1 | . . . . . . . . . . . . . . . . 1 Destroy 72 | . . 1 . 2 8 4 . . . . 2 26 6 . 8 15 Blast 24 | . . . . . . 1 . 2 . . 3 16 . . . 2 Melee Attacks . | . . . . . . . . . . . . . . . . . Impact . | . . . . . . . . . . . . . . . . . Slashing . | . . . . . . . . . . . . . . . . . Piercing . | . . . . . . . . . . . . . . . . . Sneak Attacks . | . . . . . . . . . . . . . . . . . Combat Hostiles . | . . . . . . . . . . . . . . . . . Follow-up Attacks . | . . . . . . . . . . . . . . . . . Damage Inflicted 39279 | 102 231 881 1809 1004 1959 6381 238 363 . . 2738 11902 1218 448 3883 6122 Guns 25904 | 102 231 881 1809 1004 1917 4101 25 118 . . 1473 5370 1059 448 2482 4884 Cannons 6722 | . . . . . . 1469 . 245 . . 1265 2817 159 . . 767 Explosions 6348 | . . . . . . 804 205 . . . . 3675 . . 1253 411 Melee . | . . . . . . . . . . . . . . . . . Ramming 305 | . . . . . 42 7 8 . . . . 40 . . 148 60 Kinetic 29786 | 68 145 366 1272 1004 1917 5413 25 312 . . 2583 7453 1178 414 2482 5154 Thermal 3510 | 34 86 515 537 . . 700 . 51 . . 155 861 40 34 . 497 Explosive 4861 | . . . . . . . 205 . . . . 2992 . . 1253 411 Electromagnetic 817 | . . . . . . 261 . . . . . 556 . . . . Impact . | . . . . . . . . . . . . . . . . . Slashing . | . . . . . . . . . . . . . . . . . Piercing . | . . . . . . . . . . . . . . . . . Highest Corruption 24 | . . 4 5 . 21 7 7 8 8 8 . . 16 16 24 11 Average Corruption 9 | . . 3 4 . 5 4 7 7 8 8 . . 13 16 17 5 Corruption Purged 1 | . . . . . . 1 . . . . . . . . . . Corruption Blocked . | . . . . . . . . . . . . . . . . . Effects 215 | . . 1 22 . 3 16 13 11 4 16 . . 29 29 51 20 Message Errors 41 | . . . 2 . 1 4 2 2 1 3 . . 3 8 11 4 Matter Fused 48 | . . . 3 . . 2 2 . 2 5 . . 11 6 14 3 Heat Flow Errors 26 | . . 1 1 . . 2 2 3 1 2 . . 4 4 3 3 Energy Discharges 29 | . . . 5 . 1 3 3 2 . 3 . . 2 2 5 3 Parts Rejected 3 | . . . . . . 1 . 1 . . . . . 1 . . Parts Fused 2 | . . . . . . . . . . . . . 1 . 1 . Data Loss (minor) 28 | . . . 6 . . 2 4 2 . 2 . . 3 3 4 2 Data Loss (major) 10 | . . . 1 . . . . . . 1 . . 1 2 3 2 Misfires 8 | . . . . . . 1 . . . . . . 4 2 1 . Alerts 4 | . . . 2 . 1 . . . . . . . . . 1 . Misdirections 2 | . . . . . . . . . . . . . . . 2 . Weapon Failures 14 | . . . 2 . . 1 . 1 . . . . . 1 6 3 Overload Shots . | . . . . . . . . . . . . . . . . . Overflow Damage 509 | . . . . . . 112 15 . . . 84 182 . . 52 64 Projectiles 269 | . . . . . . 29 . . . . 84 107 . . . 49 Explosions 210 | . . . . . . 83 15 . . . . 72 . . 40 . Melee 30 | . . . . . . . . . . . . 3 . . 12 15 Knockbacks 40 | . . . . . 1 8 . 5 . . 12 9 . . 2 3 Impact 4 | . . . . . 1 . . . . . . . . . 2 1 Kinetic 33 | . . . . . . 6 . 5 . . 12 8 . . . 2 Secondary 3 | . . . . . . 2 . . . . . 1 . . . . Self-Inflicted Damage 26 | . . . . . 19 3 4 . . . . . . . . . Shots . | . . . . . . . . . . . . . . . . . Rammed 14 | . . . . . 5 1 1 . . . . . . . 6 1 Targets Rammed 17 | . . . . . 5 1 1 . . . . 2 . . 6 2 Kicked 2 | . . . . . . . . . . . . 2 . . . . Crushed 1 | . . . . . . . . . . . . . . . . 1 Highest Temperature 513 | . 36 278 202 19 24 226 218 140 161 104 438 461 201 208 513 451 Average Temperature 82 | . 23 125 27 7 4 59 112 46 110 55 104 104 71 56 101 81 Received Heat Transfer 2883 | . 42 264 378 234 69 570 . . . . 172 757 . 4 158 235 Effects 24 | . . 5 . . . . . . . . 4 7 . . 6 2 Shutdowns 4 | . . . . . . . . . . . 1 . . . 2 1 Energy Bleed 4 | . . 2 . . . . . . . . 1 . . . 1 . Interference 9 | . . 3 . . . . . . . . . 6 . . . . Matter Decay 1 | . . . . . . . . . . . 1 . . . . . Short Circuit 2 | . . . . . . . . . . . . 1 . . . 1 Damage (minor) 1 | . . . . . . . . . . . 1 . . . . . Damage (major) 3 | . . . . . . . . . . . . . . . 3 . Siege Activations 5 | . . . . . . . . . . . . . . . . 5 Total Turns 86 | . . . . . . . . . . . . . . . . 86 Longest Duration 48 | . . . . . . . . . . . . . . . . 48 Martial Activations . | . . . . . . . . . . . . . . . . . Shielding Activations . | . . . . . . . . . . . . . . . . . Robots Disrupted . | . . . . . . . . . . . . . . . . . Combat Hostiles . | . . . . . . . . . . . . . . . . . Robots Corrupted 1 | . . . . . . . . . . . . 1 . . . . Combat Hostiles . | . . . . . . . . . . . . . . . . . Parts Fried 6 | . . . . . . . . . . . . 5 . . . 1 Impact Corruptions 4 | . . . . . . . . . . . . 1 . . 1 2 Robots Melted 1 | . . . . . . . . . . . . . . . . 1 Combat Hostiles 1 | . . . . . . . . . . . . . . . . 1 Parts Melted 13 | . 1 3 1 . . . . . . . . 1 . . 1 6 Heat Transferred 6047 | 75 200 1461 1557 . . 522 . 74 . . 222 1275 18 18 . 625 Parts Sabotaged . | . . . . . . . . . . . . . . . . . Parts Stolen . | . . . . . . . . . . . . . . . . . Parts Stripped . | . . . . . . . . . . . . . . . . . Power Chain Reactions 1 | . . . . . . . . . . . . 1 . . . . Alert | -11 -10 -9 -9 -8 -7 -6 -6 -6 -6 -5 -5 -5 -5 -5 -5 -4 ------- Run | Yrd Mat Mat Sto Mat Fac Fac Low Low Dat Pro Fac Ext Cet Arc Hub Fac Maximum Alert Level 4 | . . . 1 . . 3 . . . . 2 4 3 2 4 3 Low Security (%) 32 | 100 100 100 71 100 100 17 . . . . 41 . . 6 5 . Level 1 20 | . . . 28 . . 28 . . . . 49 30 . 61 1 . Level 2 21 | . . . . . . 45 . . . . 8 33 . 31 12 49 Level 3 16 | . . . . . . 8 . . . . . 13 99 . 23 50 Level 4 8 | . . . . . . . . . . . . 23 . . 57 . Level 5 . | . . . . . . . . . . . . . . . . . High Security . | . . . . . . . . . . . . . . . . . Max Security . | . . . . . . . . . . . . . . . . . Peak Influence 1445 | 5 50 66 265 116 87 824 . . . . 459 1445 952 498 1291 1073 Initial 808 | . . . 10 24 . 1 . . . . . 212 808 310 63 626 Average 436 | . 9 25 110 44 17 434 . . . . 188 696 820 334 984 704 Influence Increases 9079 | 5 57 206 638 236 252 1384 90 80 . . 749 2119 341 212 1782 928 Destroy 0b10 Robot/C 4500 | . 40 160 360 160 100 780 80 60 . . 320 1160 160 80 520 520 Destroy 0b10 Robot/NC 490 | 5 5 15 40 25 95 45 . . . . 10 115 10 . 60 65 Destroy Leader 882 | . 12 30 116 34 54 186 10 20 . . 62 126 . . 108 124 Allied During Kill 1126 | . . . . . . . . . . . . 302 130 80 614 . Successful Hack 102 | . . . 14 . . 30 . . . . 28 . 9 . . 21 Disable Machine 645 | . . . . 15 . 165 . . . . 195 30 . 30 105 105 Anti-Garrison Action 150 | . . . . . . . . . . . . . . . 150 . Destroy Structure 689 | . . 1 3 2 3 58 . . . . 104 206 32 22 180 78 Partial Spotted 15 | . . . . . . . . . . . . 15 . . . . Lose Combat Pursuer 480 | . . . 105 . . 120 . . . . 30 165 . . 45 15 Influence Decreases 8083 | 5 57 180 605 295 249 731 497 238 91 . 314 1111 1009 807 683 1211 Entered New Map 2528 | . . . 16 35 . 2 243 48 91 . . 223 635 465 117 653 Time Decay 4456 | 5 57 130 329 250 240 569 254 170 . . 314 618 334 342 416 428 Lost Part 439 | . . 50 110 10 9 10 . 20 . . . 90 . . 10 130 Lost Ally 360 | . . . . . . . . . . . . 180 40 . 140 . Purge Threat 300 | . . . 150 . . 150 . . . . . . . . . . Squads Dispatched 48 | . 1 . . 7 2 10 . . . . 7 7 . . 8 6 Investigation 3 | . . . . 1 . . . . . . 2 . . . . . Extermination 9 | . . . . . 2 3 . . . . 1 . . . 1 2 Reinforcement 18 | . 1 . . 3 . 5 . . . . 2 3 . . 2 2 Assault 12 | . . . . . . 1 . . . . 2 4 . . 5 . Garrison 6 | . . . . 3 . 1 . . . . . . . . . 2 Intercept . | . . . . . . . . . . . . . . . . . Searches Triggered . | . . . . . . . . . . . . . . . . . Data Miner Redirects 5 | . . . . . . . . . . . . 3 . . 1 1 Construction Impeded 6 | . . . . . . 1 . . . . . 3 . . 1 1 Haulers Reinforced . | . . . . . . . . . . . . . . . . . Active Scanning Responses . | . . . . . . . . . . . . . . . . . Cargo Convoy Interrupts 2 | . . . . . . . . . . . 1 . . . . 1 Stealth | -11 -10 -9 -9 -8 -7 -6 -6 -6 -6 -5 -5 -5 -5 -5 -5 -4 --------- Run | Yrd Mat Mat Sto Mat Fac Fac Low Low Dat Pro Fac Ext Cet Arc Hub Fac Distress Signals 15 | . . 1 4 1 1 1 . . . . . 1 2 . 2 2 Communications Jammed 2 | . . . . . . . . . . . 2 . . . . . Distress Signals 2 | . . . . . . . . . . . 2 . . . . . Times Spotted 337 | . 7 11 30 9 14 63 1 3 . . 18 79 10 7 34 51 Peak Tracking Total 13 | . 4 5 9 4 5 7 2 2 . . 4 11 5 2 6 13 Tactical Retreats 18 | . . . 4 . . 5 . . . . 2 4 . . 2 1 Traps | -11 -10 -9 -9 -8 -7 -6 -6 -6 -6 -5 -5 -5 -5 -5 -5 -4 ------- Run | Yrd Mat Mat Sto Mat Fac Fac Low Low Dat Pro Fac Ext Cet Arc Hub Fac Traps Triggered 14 | . . 2 3 1 . 1 . . . . 1 6 . . . . Indirectly . | . . . . . . . . . . . . . . . . . Trap Hack Attempts . | . . . . . . . . . . . . . . . . . Triggered . | . . . . . . . . . . . . . . . . . Disarmed . | . . . . . . . . . . . . . . . . . Reprogrammed . | . . . . . . . . . . . . . . . . . Reused . | . . . . . . . . . . . . . . . . . Traps Extracted . | . . . . . . . . . . . . . . . . . Installed . | . . . . . . . . . . . . . . . . . Triggered . | . . . . . . . . . . . . . . . . . Machines | -11 -10 -9 -9 -8 -7 -6 -6 -6 -6 -5 -5 -5 -5 -5 -5 -4 ---------- Run | Yrd Mat Mat Sto Mat Fac Fac Low Low Dat Pro Fac Ext Cet Arc Hub Fac Machines Disabled 47 | . . . . 1 . 11 . . . . 13 5 . 2 8 7 Max in Single Turn 10 | . . . . 1 . 4 . . . . 10 1 . 1 1 2 Garrison Access 4 | . . . 1 . . . . . . . 2 . . . 1 . Network Hub 2 | . . . . . . . . . . . . . . . 2 . Machines Repaired . | . . . . . . . . . . . . . . . . . Machines Dismantled . | . . . . . . . . . . . . . . . . . Machines Sabotaged . | . . . . . . . . . . . . . . . . . Overloaded Fab Kills . | . . . . . . . . . . . . . . . . . Hacking | -11 -10 -9 -9 -8 -7 -6 -6 -6 -6 -5 -5 -5 -5 -5 -5 -4 --------- Run | Yrd Mat Mat Sto Mat Fac Fac Low Low Dat Pro Fac Ext Cet Arc Hub Fac Machines Accessed 34 | . 1 . 6 2 . 7 . . 4 . 6 2 2 1 1 2 Terminals 22 | . 1 . 5 2 . 5 . . . . 3 2 2 . 1 1 Fabricators 2 | . . . . . . 1 . . . . . . . . . 1 Repair Stations 1 | . . . . . . . . . . . 1 . . . . . Recycling Units . | . . . . . . . . . . . . . . . . . Scanalyzers 2 | . . . . . . 1 . . . . 1 . . . . . Garrison Access 2 | . . . 1 . . . . . . . 1 . . . . . Total Hacks 98 | . 2 . 18 6 . 12 . . 30 . 16 3 2 5 1 3 Successful 64 | . 1 . 9 2 . 6 . . 30 . 7 . 2 5 . 2 Failed 34 | . 1 . 9 4 . 6 . . . . 9 3 . . 1 1 Catastrophic 8 | . . . 1 . . 4 . . . . 1 2 . . . . Database Lockouts . | . . . . . . . . . . . . . . . . . Manual 33 | . 1 . 9 6 . 3 . . . . 8 3 1 . . 2 Terminals 48 | . 2 . 15 6 . 8 . . . . 9 3 2 . 1 2 Fabricators 2 | . . . . . . 1 . . . . . . . . . 1 Repair Stations 4 | . . . . . . . . . . . 4 . . . . . Recycling Units . | . . . . . . . . . . . . . . . . . Scanalyzers 4 | . . . . . . 3 . . . . 1 . . . . . Garrison Access 5 | . . . 3 . . . . . . . 2 . . . . . Terminal Hacks 45 | . . . 6 . . 1 . . 30 . 1 . 2 5 . . Record 17 | . . . . . . . . . 11 . . . 1 5 . . Part Schematic 8 | . . . . . . . . . 8 . . . . . . . Robot Schematic 8 | . . . . . . . . . 8 . . . . . . . Robot Analysis 1 | . . . 1 . . . . . . . . . . . . . Prototype ID Bank 4 | . . . 1 . . . . . 3 . . . . . . . Open Door 2 | . . . 1 . . . . . . . . . 1 . . . Emergency Access Points 1 | . . . 1 . . . . . . . . . . . . . Unreport Threat 3 | . . . 2 . . 1 . . . . . . . . . . Hauler Manifests 1 | . . . . . . . . . . . 1 . . . . . Fabricator Hacks 1 | . . . . . . . . . . . . . . . . 1 Load Schematic 1 | . . . . . . . . . . . . . . . . 1 Repair Station Hacks 4 | . . . . . . . . . . . 4 . . . . . Scan Component 2 | . . . . . . . . . . . 2 . . . . . Repair 2 | . . . . . . . . . . . 2 . . . . . Recycling Unit Hacks . | . . . . . . . . . . . . . . . . . Scanalyzer 3 | . . . . . . 3 . . . . . . . . . . Insert Component 2 | . . . . . . 2 . . . . . . . . . . Analyze 1 | . . . . . . 1 . . . . . . . . . . Garrison Access Hacks 2 | . . . 1 . . . . . . . 1 . . . . . Seal Access 2 | . . . 1 . . . . . . . 1 . . . . . Unauthorized Hacks 9 | . 1 . 2 2 . 2 . . . . 1 . . . . 1 Terminals 9 | . 1 . 2 2 . 2 . . . . 1 . . . . 1 Botnet 9 | . 1 . 2 2 . 2 . . . . 1 . . . . 1 Fabricators . | . . . . . . . . . . . . . . . . . Repair Stations . | . . . . . . . . . . . . . . . . . Recycling Units . | . . . . . . . . . . . . . . . . . Scanalyzers . | . . . . . . . . . . . . . . . . . Garrison Access . | . . . . . . . . . . . . . . . . . Data Cores Recovered 1 | . . 1 . . . . . . . . . . . . . . Used . | . . . . . . . . . . . . . . . . . Hacking Detections 27 | . 1 . 5 2 . 7 . . . . 6 2 2 . 1 1 Full Trace Events 1 | . . . . . . . . . . . 1 . . . . . Feedback Events . | . . . . . . . . . . . . . . . . . Feedback Blocked . | . . . . . . . . . . . . . . . . . Robot Schematics Acquired 8 | . . . . . . . . . 8 . . . . . . . Robots Built . | . . . . . . . . . . . . . . . . . Authchips . | . . . . . . . . . . . . . . . . . Time . | . . . . . . . . . . . . . . . . . Total Robot Build Rating . | . . . . . . . . . . . . . . . . . Part Schematics Acquired 9 | . . . . . . 1 . . 8 . . . . . . . Parts Built . | . . . . . . . . . . . . . . . . . Authchips . | . . . . . . . . . . . . . . . . . Time . | . . . . . . . . . . . . . . . . . Total Part Build Rating . | . . . . . . . . . . . . . . . . . Parts Repaired 2 | . . . . . . . . . . . 2 . . . . . Time 148 | . . . . . . . . . . . 148 . . . . . Parts Recycled . | . . . . . . . . . . . . . . . . . Recycled Matter . | . . . . . . . . . . . . . . . . . Retrieved Matter . | . . . . . . . . . . . . . . . . . Retrieved Components . | . . . . . . . . . . . . . . . . . Parts Scanalyzed 1 | . . . . . . 1 . . . . . . . . . . Part Schematics Acquired 1 | . . . . . . 1 . . . . . . . . . . Parts Damaged . | . . . . . . . . . . . . . . . . . Bothacking | -11 -10 -9 -9 -8 -7 -6 -6 -6 -6 -5 -5 -5 -5 -5 -5 -4 ------------ Run | Yrd Mat Mat Sto Mat Fac Fac Low Low Dat Pro Fac Ext Cet Arc Hub Fac Used RIF Installer . | . . . . . . . . . . . . . . . . . Robots Hacked . | . . . . . . . . . . . . . . . . . Non-combat . | . . . . . . . . . . . . . . . . . Combat . | . . . . . . . . . . . . . . . . . Robot Hacks Applied . | . . . . . . . . . . . . . . . . . Relay Couplers Released 5 | . . . . . 3 . . . . . 1 . . . 1 . Machine Destruction 2 | . . . . . . . . . . . 1 . . . 1 . Programmers 3 | . . . . . 3 . . . . . . . . . . . Fabnet Peak Effective % . | . . . . . . . . . . . . . . . . . Robots Rewired 8 | . . . . . . . . . . . . 8 . . . . Allies Hacked . | . . . . . . . . . . . . . . . . . Hacks Repelled . | . . . . . . . . . . . . . . . . . Allies | -11 -10 -9 -9 -8 -7 -6 -6 -6 -6 -5 -5 -5 -5 -5 -5 -4 -------- Run | Yrd Mat Mat Sto Mat Fac Fac Low Low Dat Pro Fac Ext Cet Arc Hub Fac Total Allies 24 | . . . . . . . . . . . . 19 5 . . . Largest Group 12 | . . . . . . . . . . . . 12 10 8 8 . Highest-Rated Group 721 | . . . . . . . . . . . . 364 721 555 555 . Highest-Rated Ally 159 | . . . . . . . . . . . . 159 128 96 96 . Total Orders 4 | . . . . . . . . . . . . . . . 4 . STAY 3 | . . . . . . . . . . . . . . . 3 . FOLLOW 1 | . . . . . . . . . . . . . . . 1 . Ally Attacks 234 | . . . . . . . . . . . . 76 48 21 89 . Total Damage 6806 | . . . . . . . . . . . . 1427 1505 794 3080 . Kills 37 | . . . . . . . . . . . . 11 7 2 17 . Allies Corrupted 2 | . . . . . . . . . . . . . . . 2 . Allies Melted . | . . . . . . . . . . . . . . . . . Intel | -11 -10 -9 -9 -8 -7 -6 -6 -6 -6 -5 -5 -5 -5 -5 -5 -4 ------- Run | Yrd Mat Mat Sto Mat Fac Fac Low Low Dat Pro Fac Ext Cet Arc Hub Fac Active Infowar (turns) 7142 | . 165 109 . . . 829 549 279 123 574 477 699 753 772 916 897 Optics 3140 | . . . . . . . . . . . . 699 753 772 916 . Sensors 3728 | . . . . . . 829 549 279 123 574 477 . . . . 897 Terrain 274 | . 165 109 . . . . . . . . . . . . . . Jamming 170 | . . . . . . . . . . . 170 . . . . . ECM 1 | . . . . . . . . . . . . 1 . . . . Robot Analysis Total 1 | . . . 1 . . . . . . . . . . . . . Derelict Logs Recovered 1 | . . . . . . . . . . 1 . . . . . . Drone Launches . | . . . . . . . . . . . . . . . . . Drone Recoveries . | . . . . . . . . . . . . . . . . . Exploration | -11 -10 -9 -9 -8 -7 -6 -6 -6 -6 -5 -5 -5 -5 -5 -5 -4 ------------- Run | Yrd Mat Mat Sto Mat Fac Fac Low Low Dat Pro Fac Ext Cet Arc Hub Fac Turns Passed 13833 | 98 325 310 798 622 1107 2131 549 346 123 574 1202 2067 753 772 1016 1040 Spaces Moved 7162 | 51 175 101 327 290 664 1394 401 248 106 361 614 824 380 196 538 492 Core 3 | 2 . . . . . . . . . . . . 1 . . . Treads 2218 | 6 112 101 327 281 . . . . . . . . 165 196 538 492 Legs 1207 | 43 63 . . . . . . . . . 63 824 214 . . . Wheels 3734 | . . . . 9 664 1394 401 248 106 361 551 . . . . . Hover . | . . . . . . . . . . . . . . . . . Flight . | . . . . . . . . . . . . . . . . . Fastest Speed 50 | 50 120 160 160 115 100 115 130 130 115 130 130 170 160 160 160 160 Average Speed 144 | 121 145 160 160 158 113 124 130 130 115 130 135 178 179 175 160 160 Slowest Speed 2550 | 160 160 160 160 160 115 130 130 130 130 130 235 182 2550 240 240 243 Overloaded Moves . | . . . . . . . . . . . . . . . . . Propulsion Burnouts . | . . . . . . . . . . . . . . . . . Robots Hopped . | . . . . . . . . . . . . . . . . . Potential Cave-ins 4 | . . . . . . . . . . . . . . . 4 . Cave-ins Triggered 1 | . . . . . . . . . . . . . . . . 1 Exploration Rate (%) 44 | 4 26 12 54 40 17 33 58 51 69 46 14 84 95 94 45 12 Regions Visited 16 Branch Regions 9 Pre-discovered Areas 1 | . . . . . . . . . 1 . . . . . . . Known Exits Taken 7 | . . . . . . 1 1 1 1 1 1 . . . 1 . Unknown Exits Taken 9 | 1 1 1 1 1 1 . . . . . . 1 1 1 . . Scrap Searched 3 | . . . . . . . 2 . . 1 . . . . . . Spaces Dug 7 | . . . . . . . . . . . 2 4 . . . 1 Terrain Destroyed 464 | . . . . . 4 55 20 4 . . 64 185 1 4 76 51 Melee . | . . . . . . . . . . . . . . . . . Projectile 218 | . . . . . 4 13 . 4 . . 31 81 1 4 48 32 AOE 245 | . . . . . . 42 20 . . . 33 104 . . 28 18 Terrain Rammed . | . . . . . . . . . . . . . . . . . Walls Destroyed . | . . . . . . . . . . . . . . . . . Machines Disabled . | . . . . . . . . . . . . . . . . . Actions | -11 -10 -9 -9 -8 -7 -6 -6 -6 -6 -5 -5 -5 -5 -5 -5 -4 --------- Run | Yrd Mat Mat Sto Mat Fac Fac Low Low Dat Pro Fac Ext Cet Arc Hub Fac Total 9493 | 69 214 161 441 384 880 1628 422 261 108 466 921 1218 439 614 621 646 Wait 1053 | . 4 11 7 26 116 84 13 1 . 102 184 45 13 395 2 50 Move 7146 | 50 174 100 326 289 663 1393 400 247 105 360 613 823 379 195 537 492 Hop . | . . . . . . . . . . . . . . . . . Pick Up 97 | 1 7 1 4 8 9 10 1 1 . . 19 15 8 1 9 3 Fast Attach 96 | 8 2 3 12 6 6 8 . . . . 14 14 6 4 3 10 Attach 46 | . 1 3 3 2 3 3 . 2 . 4 4 11 . 1 . 9 Detach 28 | 2 1 . 4 1 1 3 . . 3 . 3 8 1 . . 1 Swap 141 | . 3 3 4 6 8 27 2 3 . . 16 42 3 4 8 12 Drop 168 | . 6 . 6 14 14 13 1 1 . . 29 35 19 7 11 12 Fire 604 | 8 16 40 75 32 55 86 4 6 . . 39 126 10 7 45 55 Melee . | . . . . . . . . . . . . . . . . . Ram 7 | . . . . . 5 1 1 . . . . . . . . . Kick 2 | . . . . . . . . . . . . 2 . . . . Crush 8 | . . . . . . . . . . . . . . . 6 2 Escape Stasis 25 | . . . . . . . . . . . . 25 . . . . Rewire 72 | . . . . . . . . . . . . 72 . . . . Trap . | . . . . . . . . . . . . . . . . . Miscellaneous . | . . . . . . . . . . . . . . . . . Route ------- -11/Scrapyard -10/Materials -9/Materials (discovered 2 exits: [*Min] / *Sto) -9/Storage (discovered 2 exits: *Mat / [*Rec]) -8/Materials -7/Factory -6/Factory (discovered 2 exits: *Fac / *Low) -6/Lower Caves -6/Lower Caves -6/Data Miner -5/Proximity Caves -5/Factory -5/Extension (discovered 3 exits: *Fac x2 / *Cet) -5/Cetus (discovered 3 exits: *Fac x2 / *Arc) -5/Archives (discovered 3 exits: *Fac / *Hub x2) -5/Hub_04(d) -4/Factory History --------- Turn | Location | Event 17 | -11/Scrapyard | Discovered new exit (range 16) 99 | -11/Scrapyard | Entered Materials 337 | -10/Materials | Build established: Mutant 409 | -10/Materials | Discovered new exit (range 10) 424 | -10/Materials | Entered another Materials area 424 | -9/Materials | Evolved 2 slots: Utility x1, Weapon x1 461 | -9/Materials | Discovered new exit (range 16) 710 | -9/Materials | Discovered new exit (range 5) 734 | -9/Materials | Entered Storage 946 | -9/Storage | Used back door to open Recycling access 946 | -9/Storage | Discovered new exit (range 5) 1049 | -9/Storage | Build established: Scavenger-Gunner 1155 | -9/Storage | Core integrity fell below 50% 1257 | -9/Storage | Lost 9 parts (3n2u4w) 1434 | -9/Storage | Discovered new exit (range 8) 1532 | -9/Storage | Entered Materials 1532 | -8/Materials | Evolved 2 slots: Propulsion x1, Utility x1 1591 | -8/Materials | Build established: Scavenger-Tank 1653 | -8/Materials | Garrison activated, responded to threat 1836 | -8/Materials | Met 7R-MNS 2104 | -8/Materials | Discovered new exit (range 16) 2154 | -8/Materials | Entered Factory 2154 | -7/Factory | Evolved 2 slots: Propulsion x1, Weapon x1 2155 | -7/Factory | Caught up to 7R-MNS 2379 | -7/Factory | Discovered new exit (range 11) 2715 | -7/Factory | Build established: Tank 3059 | -7/Factory | Attacked by 7R-MNS 3161 | -7/Factory | 7R-MNS lamented failing the tripod run 3188 | -7/Factory | Found Corrupted Prototype Device 3188 | -7/Factory | Identified Multitargeting Array 3193 | -7/Factory | System corruption reached 10% 3261 | -7/Factory | Entered another Factory area 3261 | -6/Factory | Evolved 2 slots: Utility x2 3470 | -6/Factory | Build established: Scavenger-Gunner 4182 | -6/Factory | Garrison activated, responded to threat 4732 | -6/Factory | Build established: Skirmisher 5039 | -6/Factory | Discovered new exit (range 16) 5062 | -6/Factory | Identified exit to Factory 5214 | -6/Factory | Discovered new exit (range 11) 5226 | -6/Factory | Identified exit to Lower Caves 5323 | -6/Factory | Build established: Gunner 5361 | -6/Factory | First assault squad dispatched 5392 | -6/Factory | Entered Lower Caves 5658 | -6/Lower Caves | Encountered a Warlord checkpoint 5698 | -6/Lower Caves | Build established: Skirmisher 5918 | -6/Lower Caves | Discovered new exit (range 10) 5928 | -6/Lower Caves | Identified exit to Lower Caves 5941 | -6/Lower Caves | Entered another Lower Caves area 6235 | -6/Lower Caves | Discovered new exit (range 12) 6247 | -6/Lower Caves | Identified exit to Data Miner 6287 | -6/Lower Caves | Entered Data Miner 6287 | -6/Data Miner | Discovered new exit (range 6) 6311 | -6/Data Miner | Met Data Miner 6333 | -6/Data Miner | Learned location of Section 7 (-3) 6333 | -6/Data Miner | Acquired the access code to Warlord's prototype stash 6351 | -6/Data Miner | Received God Mode back door access code from Data Miner 6409 | -6/Data Miner | Identified exit to Proximity Caves 6410 | -6/Data Miner | Entered Proximity Caves 6978 | -5/Proximity Caves | Discovered exit to Factory (range 5) 6983 | -5/Proximity Caves | Learned Factory garrison access intel 6984 | -5/Proximity Caves | Entered Factory 6984 | -5/Factory | Evolved 2 slots: Power x1, Utility x1 6985 | -5/Factory | Loaded intel: 4 garrison access locations 7084 | -5/Factory | Discovered new exit (range 6) 7090 | -5/Factory | Identified exit to Extension 7612 | -5/Factory | Repaired Adv. Weapon Cycler 7694 | -5/Factory | Repaired Cold Fusion Reactor 7770 | -5/Factory | Build established: Scavenger-Gunner 7939 | -5/Factory | Cargo convoy interrupted 8186 | -5/Factory | Entered Extension 8291 | -5/Extension | Destroyed 8 combat bots 8383 | -5/Extension | Rescued a captive Derelict 8788 | -5/Extension | Spotted B-75 Beast 8861 | -5/Extension | Disrupted transfer network 8891 | -5/Extension | Destroyed B-75 Beast 8899 | -5/Extension | Spotted B-75 Beast 8915 | -5/Extension | Destroyed B-75 Beast 8924 | -5/Extension | Build established: Scavenger-Tank 9078 | -5/Extension | Rescued a captive Derelict 9078 | -5/Extension | Rescued a captive Derelict 9086 | -5/Extension | First assault squad dispatched 9103 | -5/Extension | Incoming assault squad redirected 9131 | -5/Extension | Rescued a captive Derelict 9132 | -5/Extension | Rescued a captive Derelict 9515 | -5/Extension | P-70 Sage assimilated allied N2-62I(h) 9554 | -5/Extension | Lost 4 parts (1p2u1w) 9587 | -5/Extension | Lost 11 allies 9704 | -5/Extension | Incoming assault squad redirected 9733 | -5/Extension | Discovered new exit (range 3) 9735 | -5/Extension | Identified exit to Factory 9810 | -5/Extension | Build established: Scavenger-Gunner 9916 | -5/Extension | Rescued a captive Derelict 9936 | -5/Extension | Rescued a captive Derelict 9958 | -5/Extension | Rescued a captive Derelict 9968 | -5/Extension | Rescued a captive Derelict 9970 | -5/Extension | Rescued a captive Derelict 10034 | -5/Extension | Rescued A7 10205 | -5/Extension | Discovered exit to Factory (range 10) 10207 | -5/Extension | Incoming assault squad redirected 10207 | -5/Extension | Discovered new exit (range 6) 10253 | -5/Extension | Entered Cetus 10253 | -5/Cetus | Accompanied by 6 allies (A7) 10258 | -5/Cetus | Acquired a Cetus Manufacturing Module code from A7 10273 | -5/Cetus | Spotted Cetus Guard 10273 | -5/Cetus | Spotted Cetus Guard 10276 | -5/Cetus | Spotted Cetus Guard 10279 | -5/Cetus | Spotted Cetus Guard 10279 | -5/Cetus | Allies destroyed Cetus Guard 10280 | -5/Cetus | Destroyed Cetus Guard 10284 | -5/Cetus | Allies destroyed Cetus Guard 10288 | -5/Cetus | Allies destroyed Cetus Guard 10329 | -5/Cetus | System corruption reached 10% 10391 | -5/Cetus | Discovered exit to Factory (range 21) 10475 | -5/Cetus | Build established: Scavenger-Tank 10520 | -5/Cetus | Started Cetus Manufacturing Module 10532 | -5/Cetus | Escorted A7 to Cetus Mainframe 10545 | -5/Cetus | Manufactured an Enhanced Grunt 10570 | -5/Cetus | Manufactured an Enhanced Grunt 10595 | -5/Cetus | Manufactured an Enhanced Grunt 10620 | -5/Cetus | Manufactured an Enhanced Grunt 10645 | -5/Cetus | Manufactured an Enhanced Grunt 10766 | -5/Cetus | Discovered new exit (range 21) 10802 | -5/Cetus | Spotted Cetus Guard 10804 | -5/Cetus | Spotted Cetus Guard 10806 | -5/Cetus | Spotted Cetus Guard 10809 | -5/Cetus | Spotted Cetus Guard 10817 | -5/Cetus | Discovered exit to Factory (range 22) 10819 | -5/Cetus | Extracted ID and sensor layout for unrecognized location from A7's data core 10820 | -5/Cetus | Destroyed Cetus Guard 10823 | -5/Cetus | Allies destroyed Cetus Guard 10827 | -5/Cetus | Destroyed Cetus Guard 10830 | -5/Cetus | Allies destroyed Cetus Guard 10857 | -5/Cetus | Met Revision 17 11003 | -5/Cetus | Security sweep announced 11006 | -5/Cetus | Entered Archives 11006 | -5/Archives | Accompanied by 8 allies 11062 | -5/Archives | Discovered exit to Factory (range 14) 11078 | -5/Archives | Discovered new exit (range 22) 11078 | -5/Archives | Discovered new exit (range 18) 11124 | -5/Archives | Unable to access archive contents 11568 | -5/Archives | Build established: Scavenger-Mutant 11778 | -5/Archives | Entered Hub_04(d) 11778 | -5/Hub_04(d) | Accompanied by 8 allies 11783 | -5/Hub_04(d) | Discovered exit to Factory (range 5) 11896 | -5/Hub_04(d) | Build established: Scavenger-Tank 12078 | -5/Hub_04(d) | First assault squad dispatched 12592 | -5/Hub_04(d) | Network Hub disabled 12597 | -5/Hub_04(d) | Network Hub disabled 12622 | -5/Hub_04(d) | Spotted Lightning 12623 | -5/Hub_04(d) | Spotted Lightning 12648 | -5/Hub_04(d) | Spotted Lightning 12668 | -5/Hub_04(d) | Destroyed Lightning 12689 | -5/Hub_04(d) | Destroyed Lightning 12699 | -5/Hub_04(d) | Destroyed Lightning 12703 | -5/Hub_04(d) | Incoming assault squad redirected 12794 | -5/Hub_04(d) | Entered Factory 12794 | -4/Factory | Evolved 2 slots: Propulsion x2 13230 | -4/Factory | Found Prototype Launcher 13230 | -4/Factory | Identified Mni. Smartbomb Launcher 13642 | -4/Factory | Garrison activated, responded to threat 13774 | -4/Factory | Spotted Striker 13774 | -4/Factory | Spotted Striker 13775 | -4/Factory | Cargo convoy interrupted 13776 | -4/Factory | Spotted Executioner 13784 | -4/Factory | Destroyed Striker 13799 | -4/Factory | Destroyed Executioner 13800 | -4/Factory | Incoming assault squad redirected 13812 | -4/Factory | System corruption reached 10% 13820 | -4/Factory | Destroyed 7 combat bots 13827 | -4/Factory | Destroyed Striker 13828 | -4/Factory | Crushed by falling debris 13834 | -4/Factory | Self-destructed Last Messages --------------- 13831_ K-01 Serf collects debris. 13831_ Slug penetrates H-77 Assassin. 13831_ Penetrated by Slug. 13831_ M-28 Smith repairs U-05 Engineer Wheel. 13832_ U-05 Engineer lays Concrete. 13832_ Destroyed Imp. Heat Sink. 13832_ Slug penetrates P-70 Sage. 13832_ Slug penetrates Wall. 13832_ K-01 Serf collects debris. 13833_ Wall collapses. 13833_ Acquired 5 matter. 13833_ U-05 Engineer lays Concrete. 13833_ Penetrated by Slug. 13833_ Slug penetrates Wall. 13833_ Centrium Medium Armor Plating destroyed. 13833_ M-28 Smith repairs U-05 Engineer Wheel. 13834_ U-05 Engineer builds a Wall. 13834_ Centrium Medium Armor Plating destroyed. 13834_ Cld. Plasma Cannon destroyed. [Achievement: Tester] Map ----- +----------------------------------------------------+ | ?????????????????????????????????????????????????? | | ?????????????????????????????????????????????????? | | ?????????????????????????????????????????????????? | | ?????????????????????????????????????????????????? | | ?????????????????????????????????????????????????? | | ?????????????????????????????????????????????????? | | ?????????????????????????????????????????????????? | | ?????????????????????????????????????????????????? | | ?????????????????????????????????????????????????? | | ????????????????????###=###??????????????????????? | | ????????????????????# ! ???????????????????????? | | ????????????????????? T%= ???????????????????????? | | ????????????????????? * ???????????????????????? | | ????????????????????? ???????????????????????? | | ????????????????????? ???????????????????????? | | ?????????????????????#|!*####+##?????????????????? | | ?????????????????????#=!%# ??????????????????? | | ?????????????????????#!%=+% ????????????????? | | ?????#####??????????##!g!#g= """?????????????????? | | ????? ##/#########=g=#=! """" ???????????????? | | ??????"" !====kg!#=! """ #??????????????? | | ####??T *=[!=hk#%[ """" #??????????????? | | =#?? = %!==h|#[ #??????????????? | | " #?? = ??????########x%;*! #??????????????? | | " #??#*#????##?????#==[=p% #??????????????? | | " #??#%#????# #??# =*#=#@#######????????????????? | | #??# ##########"""!#u!%*##????????????????????? | | ! #??# %% ==%= [" ==!%!!; "#??????????????? | | ! #??# #####/###" !/*! ;##???????????????????? | | ! #??# # ! ; #???????????????????? | | #??# #"" """" ##???????????????????? | | +###### #"F """ ;#????????????????????? | | #"" "" #????????????????????? | | #"" " " #????????????????????? | | "# ;????????????????????? | | "##### ; ;;????????????????????? | | "#????? ;#"???????????????????? | | %#??????? ;;????????????????????? | | " " " "#????????? ;????????????????????? | | " " " "#??????????? #????????????????????? | | " " " "#??????????? ?? ?????????????????????? | | " " " ##?????????? ????????????????????????????? | | " " " +?????????? ????????????????????????????? | | " " " #???????????????????????????????????????? | | " " " #######+####+####### ??????????????????? | | " " " ^ ?????????????????? | | " " " ?????????????????? | | ?????????????????? | | #######+####+#######????????????????????? | | ###### ## #????????????????????????????? | +----------------------------------------------------+ Best States ------------- Heat Dissipation 97 Energy Generation 43 Energy Capacity 590 Matter Stores 300 Matter Capacity 300 Sight Range 22 Robot Scan Range 16 Terrain Scan Range 14 Terrain Scan Density 10 Jamming Range 12 Power Amplification 40 Base Temperature (-) 400 Armor Coverage 900 Core Shielding 20 Weapon Cycling 25 Phase Shifting 5 Evasion (%) 55 Targeting Accuracy 24 Recoil Reduction 6 Offensive Hacking 14 Authchip Count 2 Item Schematics ----------------- Exp. Cooling System | -6/Factory | Scanalyzed Combat Drone Bay | -6/Data Miner | Free Lgt. Regenerative Plating | -6/Data Miner | Free Cld. Gravmag System | -6/Data Miner | Free Adv. EM Disruption Field | -6/Data Miner | Free Tiamat Missile Launcher | -6/Data Miner | Free Adv. VSS Leg | -6/Data Miner | Free Adv. Power Amplifier | -6/Data Miner | Free Hvy. Disruptor Cannon | -6/Data Miner | Free Robot Schematics ------------------ B-60 Warrior | -6/Data Miner | Free S-27 Virus | -6/Data Miner | Free M-22 Extractor | -6/Data Miner | Free E-15 Imp | -6/Data Miner | Free R-10 Processor | -6/Data Miner | Free A-15 Conveyor | -6/Data Miner | Free O-32 Director | -6/Data Miner | Free X-67 Chaingunner | -6/Data Miner | Free Fabricated ------------ Nothing Repaired ---------- Adv. Weapon Cycler | 38% | -5/Factory Cold Fusion Reactor | 63% | -5/Factory Alien Tech Used ----------------- None Achievements -------------- Tester Challenges ------------ None Game ------ Seed DecoyDisposableNullifier Manual? 0 Play Time 02:24:05 Cumulative 116.9 hours Start 2025.08.07 @ 22:04:06 End 2025.08.08 @ 00:30:25 Sessions 1 Manual Loads 0 Difficulty Rogue Special Mode None Game No. 103 Rogue 103 Adventurer 0 Explorer 0 Win Type - Total 4 Types 4/0/0/0/0/0/0/0/0/0 Lore% 30 Gallery% 50 Achievement% 46 Wizard Run 0 Options --------- Layout 2 ASCII 0 Keyboard 1 Movement Arrows Keybinds 0 Fullscreen 1 Font 32/Tamsyn Map View 50x44 Zoom Use 0% Tactical HUD 1 Map Filters NONE Filters NONE Steam 1 RUN: 2f03119c-31b9-4f3d-b4bd-d30359fb0028